fUSD/lending_fUSD_20260616
["ID","MTS","AMOUNT","RATE_DAILY","PERIOD"]
[425188019,1781565044000,-500.0,0.00013698,2]
[425188021,1781565044000,-500.0,0.00013698,2]
[425188020,1781565044000,-500.0,0.00013698,2]
[425188024,1781565044000,-500.0,0.00013698,2]
[425188022,1781565044000,-500.0,0.00013698,2]
[425188026,1781565044000,-500.0,0.00013698,2]
[425188023,1781565044000,-500.0,0.00013698,2]
[425188028,1781565044000,-504.03050373,0.00013698,2]
[425188030,1781565044000,-230.0,0.00013698,2]
[425188025,1781565044000,-500.0,0.00013698,2]
[425188029,1781565044000,-230.0,0.00013698,2]
[425188031,1781565044000,-230.0,0.00013698,2]
[425188034,1781565044000,-234.45041579,0.00013698,2]
[425188032,1781565044000,-230.0,0.00013698,2]
[425188040,1781565044000,-4388.91,0.00013698,2]
[425188033,1781565044000,-230.0,0.00013698,2]
[425188038,1781565044000,-4388.91,0.00013698,2]
[425188036,1781565044000,-4388.91,0.00013698,2]
[425188066,1781565044000,-4043.17,0.00013734,2]
[425188097,1781565044000,-150.0,0.00013862,2]
[425188073,1781565044000,-150.0,0.00013771,2]
[425188099,1781565044000,-150.0,0.00013879,2]
[425188123,1781565044000,-309.5526394,0.00013972,2]
[425188102,1781565044000,-150.0,0.00013887,2]
[425188101,1781565044000,-4043.17,0.00013882,2]
[425188100,1781565044000,-309.5526394,0.00013881,2]
[425188103,1781565044000,-150.0,0.00013893,2]
[425188105,1781565044000,-150.0,0.000139,2]
[425188104,1781565044000,-309.5526394,0.00013896,2]
[425188106,1781565044000,-19900.0,0.000139,5]
[425188107,1781565044000,-4043.17,0.00013904,2]
[425188109,1781565044000,-309.5526394,0.00013912,2]
[425188117,1781565044000,-309.5526394,0.00013942,2]
[425188110,1781565044000,-150.0,0.00013916,2]
[425188111,1781565044000,-150.0,0.00013921,2]
[425188108,1781565044000,-150.0,0.00013911,2]
[425188114,1781565044000,-150.0,0.00013933,2]
[425188116,1781565044000,-150.0,0.00013937,2]
[425188113,1781565044000,-309.5526394,0.00013927,2]
[425188115,1781565044000,-150.0,0.00013937,2]
[425188112,1781565044000,-4043.17,0.00013926,2]
[425188120,1781565044000,-150.0,0.00013954,2]
[425188119,1781565044000,-4043.17,0.00013947,2]
[425188121,1781565044000,-309.5526394,0.00013957,2]
[425188122,1781565044000,-4043.17,0.00013968,2]
[425188074,1781565044000,-309.5526394,0.00013775,2]
[425188098,1781565044000,-309.5526394,0.00013866,2]
[425188093,1781565044000,-309.5526394,0.00013851,2]
[425188118,1781565044000,-150.0,0.00013944,2]
[425188090,1781565044000,-309.5526394,0.00013836,2]
[425188095,1781565044000,-150.0,0.00013854,2]
[425188075,1781565044000,-150.0,0.00013781,2]
[425188067,1781565044000,-309.5526394,0.00013745,2]
[425188069,1781565044000,-150.0,0.0001375,2]
[425188071,1781565044000,-309.5526394,0.0001376,2]
[425188068,1781565044000,-150.0,0.00013748,2]
[425188072,1781565044000,-4043.17,0.00013761,2]
[425188070,1781565044000,-150.0,0.00013754,2]
[425188077,1781565044000,-150.0,0.00013787,2]
[425188087,1781565044000,-309.5526394,0.00013821,2]
[425188080,1781565044000,-309.5526394,0.0001379,2]
[425188079,1781565044000,-150.0,0.00013787,2]
[425188086,1781565044000,-150.0,0.00013821,2]
[425188076,1781565044000,-4043.17,0.00013787,2]
[425188094,1781565044000,-150.0,0.00013852,2]
[425188083,1781565044000,-4043.17,0.00013812,2]
[425188092,1781565044000,-150.0,0.00013846,2]
[425188096,1781565044000,-4043.17,0.00013859,2]
[425188089,1781565044000,-300.02,0.00013834,2]
[425188088,1781565044000,-150.0,0.00013825,2]
[425188091,1781565044000,-4043.17,0.00013836,2]
[425188085,1781565044000,-3620.0,0.0001382,2]
[425188081,1781565044000,-309.5526394,0.00013806,2]
[425188078,1781565044000,-150.0,0.00013787,2]
[425188082,1781565044000,-150.0,0.00013812,2]
[425188084,1781565044000,-150.0,0.00013813,2]
[425188143,1781565045000,-150.0,0.00014021,2]
[425188132,1781565045000,-4043.17,0.00013988,2]
[425188136,1781565045000,-280.4909453,0.00014,2]
[425188135,1781565045000,-155.82830295,0.00014,2]
[425188146,1781565045000,-150.0,0.00014042,2]
[425188150,1781565045000,-150.0,0.00014054,2]
[425188142,1781565045000,-309.5526394,0.00014017,2]
[425188145,1781565045000,-309.5526394,0.00014033,2]
[425188149,1781565045000,-150.0,0.0001405,2]
[425188147,1781565045000,-4043.17,0.00014046,2]
[425188137,1781565045000,-309.5526394,0.00014002,2]
[425188144,1781565045000,-4043.17,0.00014027,2]
[425188140,1781565045000,-150.0,0.00014012,2]
[425188129,1781565045000,-150.0,0.00013987,2]
[425188139,1781565045000,-150.0,0.00014009,2]
[425188134,1781565045000,-1500.0,0.00014,2]
[425188133,1781565045000,-38315.06804238,0.0001399,2]
[425188130,1781565045000,-150.0,0.00013987,2]
[425188141,1781565045000,-150.0,0.00014014,2]
[425188131,1781565045000,-309.5526394,0.00013987,2]
[425188127,1781565045000,-150.0,0.00013976,2]
[425188128,1781565045000,-150.0,0.00013987,2]
[425188124,1781565045000,-500.0,0.00013973,2]
[425188125,1781565045000,-150.0,0.00013974,2]
[425188126,1781565045000,-150.0,0.00013975,2]
[425188148,1781565045000,-309.5526394,0.00014048,2]
[425188138,1781565045000,-4043.17,0.00014008,2]
[425188152,1781565045000,-309.5526394,0.00014063,2]
[425188153,1781565045000,-4043.17,0.00014065,2]
[425188154,1781565045000,-150.0,0.00014074,2]
[425188151,1781565045000,-150.0,0.00014055,2]
[425188176,1781565045000,-150.0,0.00014139,2]
[425188177,1781565045000,-4043.17,0.00014154,2]
[425188175,1781565045000,-309.5526394,0.00014139,2]
[425188180,1781565045000,-150.0,0.00014162,2]
[425188173,1781565045000,-150.0,0.00014136,2]
[425188178,1781565045000,-150.0,0.00014154,2]
[425188174,1781565045000,-4043.17,0.00014136,2]
[425188171,1781565045000,-500.0,0.00014126,2]
[425188169,1781565045000,-309.5526394,0.00014123,2]
[425188172,1781565045000,-150.0,0.0001413,2]
[425188168,1781565045000,-150.0,0.0001412,2]
[425188170,1781565045000,-150.0,0.00014125,2]
[425188179,1781565045000,-309.5526394,0.00014154,2]
[425188167,1781565045000,-4043.17,0.00014119,2]
[425188163,1781565045000,-150.0,0.00014107,2]
[425188155,1781565045000,-309.5526394,0.00014078,2]
[425188162,1781565045000,-4043.17,0.00014101,2]
[425188159,1781565045000,-150.0,0.00014087,2]
[425188158,1781565045000,-150.0,0.00014087,2]
[425188156,1781565045000,-4043.17,0.00014083,2]
[425188160,1781565045000,-309.5526394,0.00014093,2]
[425188157,1781565045000,-150.0,0.00014087,2]
[425188164,1781565045000,-309.5526394,0.00014108,2]
[425188166,1781565045000,-82337.99307425,0.00014118,2]
[425188165,1781565045000,-4388.91,0.00014117,2]
[425188161,1781565045000,-150.0,0.00014095,2]
[425188207,1781565046000,-4043.17,0.00014252,2]
[425188211,1781565046000,-4043.17,0.00014267,2]
[425188210,1781565046000,-309.5526394,0.0001426,2]
[425188208,1781565046000,-150.0,0.00014254,2]
[425188205,1781565046000,-309.5526394,0.00014245,2]
[425188215,1781565046000,-4043.17,0.00014283,2]
[425188214,1781565046000,-309.5526394,0.00014275,2]
[425188217,1781565046000,-309.5526394,0.0001429,2]
[425188216,1781565046000,-150.0,0.00014287,2]
[425188209,1781565046000,-150.0,0.00014257,2]
[425188233,1781565046000,-4043.17,0.00014342,2]
[425188226,1781565046000,-150.0,0.0001432,2]
[425188223,1781565046000,-150.0,0.00014312,2]
[425188219,1781565046000,-150.0,0.00014298,2]
[425188221,1781565046000,-309.5526394,0.00014305,2]
[425188222,1781565046000,-275.12264613,0.00014307,2]
[425188218,1781565046000,-4043.17,0.00014298,2]
[425188225,1781565046000,-228.634249,0.00014315,2]
[425188224,1781565046000,-4043.17,0.00014313,2]
[425188227,1781565046000,-309.5526394,0.0001432,2]
[425188229,1781565046000,-150.0,0.00014335,2]
[425188213,1781565046000,-150.0,0.00014274,2]
[425188220,1781565046000,-150.0,0.00014302,2]
[425188212,1781565046000,-150.0,0.0001427,2]
[425188189,1781565046000,-309.5526394,0.00014199,2]
[425188204,1781565046000,-189.447465,0.00014244,2]
[425188231,1781565046000,-150.0,0.00014338,2]
[425188182,1781565046000,-309.5526394,0.00014169,2]
[425188181,1781565046000,-582.58,0.00014167,2]
[425188184,1781565046000,-150.0,0.00014172,2]
[425188183,1781565046000,-4043.17,0.0001417,2]
[425188186,1781565046000,-309.5526394,0.00014184,2]
[425188187,1781565046000,-150.0,0.00014187,2]
[425188185,1781565046000,-150.0,0.00014176,2]
[425188191,1781565046000,-4043.17,0.00014204,2]
[425188193,1781565046000,-2318.14552739,0.0001421,7]
[425188190,1781565046000,-150.0,0.000142,2]
[425188188,1781565046000,-4043.17,0.00014187,2]
[425188194,1781565046000,-309.5526394,0.00014214,2]
[425188192,1781565046000,-150.0,0.00014204,2]
[425188195,1781565046000,-150.0,0.00014217,2]
[425188197,1781565046000,-150.0,0.0001422,2]
[425188196,1781565046000,-4043.17,0.0001422,2]
[425188198,1781565046000,-309.5526394,0.00014229,2]
[425188200,1781565046000,-150.0,0.00014237,2]
[425188202,1781565046000,-150.0,0.00014237,2]
[425188201,1781565046000,-150.0,0.00014237,2]
[425188203,1781565046000,-150.0,0.00014237,2]
[425188199,1781565046000,-4043.17,0.00014236,2]
[425188206,1781565046000,-500.0,0.00014247,2]
[425188230,1781565046000,-309.5526394,0.00014335,2]
[425188266,1781565046000,-150.0,0.00014487,2]
[425188228,1781565046000,-4043.17,0.00014328,2]
[425188267,1781565046000,-150.0,0.00014487,2]
[425188271,1781565046000,-150.0,0.00014498,2]
[425188273,1781565046000,-150.0,0.000145,2]
[425188264,1781565046000,-150.0,0.00014465,2]
[425188265,1781565046000,-309.5526394,0.00014472,2]
[425188272,1781565046000,-150.0,0.00014499,2]
[425188262,1781565046000,-150.0,0.0001446,2]
[425188270,1781565046000,-300.02,0.00014493,2]
[425188269,1781565046000,-309.5526394,0.00014487,2]
[425188274,1781565046000,-309.5526394,0.00014502,2]
[425188278,1781565046000,-150.0,0.0001453,2]
[425188275,1781565046000,-309.5526394,0.00014517,2]
[425188277,1781565046000,-500.0,0.00014521,2]
[425188276,1781565046000,-150.0,0.0001452,2]
[425188282,1781565046000,-150.0,0.00014541,2]
[425188281,1781565046000,-150.0,0.00014537,2]
[425188279,1781565046000,-309.5526394,0.00014532,2]
[425188283,1781565046000,-309.5526394,0.00014547,2]
[425188280,1781565046000,-150.0,0.00014537,2]
[425188285,1781565046000,-150.0,0.00014553,2]
[425188284,1781565046000,-636.59460219,0.0001455,2]
[425188234,1781565046000,-150.0,0.00014344,2]
[425188286,1781565046000,-150.0,0.00014558,2]
[425188263,1781565046000,-150.0,0.00014462,2]
[425188258,1781565046000,-150.0,0.00014432,2]
[425188268,1781565046000,-150.0,0.00014487,2]
[425188253,1781565046000,-309.5526394,0.00014411,2]
[425188236,1781565046000,-309.5526394,0.00014351,2]
[425188238,1781565046000,-4043.17,0.00014357,2]
[425188260,1781565046000,-150.0,0.00014453,2]
[425188237,1781565046000,-150.0,0.00014354,2]
[425188235,1781565046000,-150.0,0.00014349,2]
[425188241,1781565046000,-150.0,0.00014367,2]
[425188240,1781565046000,-309.5526394,0.00014366,2]
[425188243,1781565046000,-150.0,0.00014379,2]
[425188246,1781565046000,-150.0,0.00014387,2]
[425188244,1781565046000,-309.5526394,0.00014381,2]
[425188247,1781565046000,-150.0,0.00014387,2]
[425188242,1781565046000,-4043.17,0.00014371,2]
[425188245,1781565046000,-4043.17,0.00014385,2]
[425188249,1781565046000,-309.5526394,0.00014396,2]
[425188259,1781565046000,-309.5526394,0.00014441,2]
[425188250,1781565046000,-4043.17,0.00014399,2]
[425188256,1781565046000,-150.0,0.00014424,2]
[425188257,1781565046000,-309.5526394,0.00014426,2]
[425188261,1781565046000,-309.5526394,0.00014456,2]
[425188254,1781565046000,-150.0,0.00014419,2]
[425188251,1781565046000,-150.0,0.000144,2]
[425188252,1781565046000,-4043.17,0.00014409,2]
[425188248,1781565046000,-150.0,0.00014387,2]
[425188255,1781565046000,-150.0,0.0001442,2]
[425188319,1781565047000,-150.0,0.0001472,2]
[425188314,1781565047000,-150.0,0.00014693,2]
[425188327,1781565047000,-150.0,0.00014758,2]
[425188324,1781565047000,-150.0,0.00014743,2]
[425188321,1781565047000,-150.0,0.00014726,2]
[425188320,1781565047000,-150.0,0.00014724,2]
[425188317,1781565047000,-150.0,0.00014703,2]
[425188318,1781565047000,-309.5526394,0.00014714,2]
[425188326,1781565047000,-150.0,0.00014753,2]
[425188322,1781565047000,-309.5526394,0.00014729,2]
[425188323,1781565047000,-382.0,0.00014736,2]
[425188335,1781565047000,-309.5526394,0.0001479,2]
[425188328,1781565047000,-309.5526394,0.00014759,2]
[425188330,1781565047000,-150.0,0.00014772,2]
[425188337,1781565047000,-500.0,0.00014795,2]
[425188332,1781565047000,-382.0,0.00014781,2]
[425188338,1781565047000,-150.0,0.00014799,2]
[425188331,1781565047000,-309.5526394,0.00014774,2]
[425188329,1781565047000,-150.0,0.00014762,2]
[425188333,1781565047000,-150.0,0.00014784,2]
[425188334,1781565047000,-150.0,0.00014786,2]
[425188315,1781565047000,-309.5526394,0.00014699,2]
[425188336,1781565047000,-150.0,0.00014791,2]
[425188325,1781565047000,-309.5526394,0.00014744,2]
[425188312,1781565047000,-150.0,0.00014687,2]
[425188287,1781565047000,-309.5526394,0.00014562,2]
[425188308,1781565047000,-150.0,0.00014662,2]
[425188341,1781565047000,-150.0,0.0001482,2]
[425188289,1781565047000,-150.0,0.00014574,2]
[425188288,1781565047000,-150.0,0.00014563,2]
[425188291,1781565047000,-150.0,0.00014581,2]
[425188290,1781565047000,-309.5526394,0.00014578,2]
[425188292,1781565047000,-150.0,0.00014587,2]
[425188294,1781565047000,-150.0,0.00014595,2]
[425188293,1781565047000,-309.5526394,0.00014593,2]
[425188295,1781565047000,-3900.0,0.000146,5]
[425188296,1781565047000,-1600.0,0.000146,2]
[425188302,1781565047000,-150.0,0.00014628,2]
[425188316,1781565047000,-3900.0,0.000147,5]
[425188300,1781565047000,-150.0,0.00014622,2]
[425188301,1781565047000,-309.5526394,0.00014623,2]
[425188303,1781565047000,-309.5526394,0.00014638,2]
[425188304,1781565047000,-150.0,0.00014649,2]
[425188299,1781565047000,-150.0,0.0001462,2]
[425188305,1781565047000,-150.0,0.00014653,2]
[425188307,1781565047000,-150.0,0.00014661,2]
[425188309,1781565047000,-309.5526394,0.00014668,2]
[425188311,1781565047000,-150.0,0.00014687,2]
[425188313,1781565047000,-150.0,0.00014687,2]
[425188306,1781565047000,-309.5526394,0.00014653,2]
[425188310,1781565047000,-309.5526394,0.00014684,2]
[425188297,1781565047000,-309.5526394,0.00014608,2]
[425188345,1781565047000,-309.5526394,0.00014835,2]
[425188298,1781565047000,-150.0,0.00014612,2]
[425188340,1781565047000,-309.5526394,0.00014805,2]
[425188369,1781565047000,-82337.99307425,0.000149,2]
[425188373,1781565047000,-150.0,0.00014905,2]
[425188374,1781565047000,-309.5526394,0.00014911,2]
[425188372,1781565047000,-8271.80974318,0.000149,2]
[425188377,1781565047000,-150.0,0.00014921,2]
[425188375,1781565047000,-150.0,0.00014911,2]
[425188380,1781565047000,-150.0,0.00014946,2]
[425188378,1781565047000,-309.5526394,0.00014926,2]
[425188376,1781565047000,-150.0,0.0001492,2]
[425188381,1781565047000,-150.0,0.00014949,2]
[425188379,1781565047000,-309.5526394,0.00014941,2]
[425188367,1781565047000,-3900.0,0.000149,5]
[425188388,1781565047000,-666.05,0.00014985,2]
[425188384,1781565047000,-309.5526394,0.00014956,2]
[425188382,1781565047000,-150.0,0.00014953,2]
[425188386,1781565047000,-309.5526394,0.00014971,2]
[425188385,1781565047000,-483.0,0.0001497,2]
[425188391,1781565047000,-283.35236688,0.00014986,2]
[425188390,1781565047000,-150.29951086,0.00014986,2]
[425188389,1781565047000,-150.43290197,0.00014986,2]
[425188392,1781565047000,-252.67040906,0.00014986,2]
[425188393,1781565047000,-288.48604092,0.00014986,2]
[425188394,1781565047000,-223.20617732,0.00014986,2]
[425188339,1781565047000,-3900.0,0.000148,5]
[425188387,1781565047000,-1204.65,0.00014985,2]
[425188366,1781565047000,-1824.67818921,0.000149,2]
[425188383,1781565047000,-150.0,0.00014954,2]
[425188370,1781565047000,-250.0,0.000149,2]
[425188362,1781565047000,-500.0,0.00014899,2]
[425188349,1781565047000,-309.5526394,0.0001485,2]
[425188344,1781565047000,-150.0,0.00014824,2]
[425188347,1781565047000,-150.0,0.00014836,2]
[425188343,1781565047000,-150.0,0.00014823,2]
[425188348,1781565047000,-250.0,0.00014849,2]
[425188346,1781565047000,-150.0,0.00014836,2]
[425188342,1781565047000,-309.5526394,0.0001482,2]
[425188354,1781565047000,-150.0,0.00014874,2]
[425188353,1781565047000,-309.5526394,0.00014865,2]
[425188356,1781565047000,-382.0,0.00014882,2]
[425188350,1781565047000,-150.0,0.00014853,2]
[425188360,1781565047000,-150.0,0.00014889,2]
[425188368,1781565047000,-1643.33,0.000149,2]
[425188371,1781565047000,-3000.0,0.000149,2]
[425188352,1781565047000,-150.0,0.00014865,2]
[425188365,1781565047000,-396.83,0.000149,2]
[425188363,1781565047000,-4388.91,0.00014899,2]
[425188361,1781565047000,-309.5526394,0.00014895,2]
[425188364,1781565047000,-381.39364736,0.000149,2]
[425188357,1781565047000,-382.0,0.00014882,2]
[425188358,1781565047000,-382.0,0.00014885,2]
[425188351,1781565047000,-150.0,0.00014856,2]
[425188355,1781565047000,-309.5526394,0.0001488,2]
[425188359,1781565047000,-150.0,0.00014886,2]
[425188429,1781565048000,-500.0,0.00014999,2]
[425188434,1781565048000,-500.0,0.00014999,2]
[425188433,1781565048000,-500.0,0.00014999,2]
[425188432,1781565048000,-500.0,0.00014999,2]
[425188431,1781565048000,-500.0,0.00014999,2]
[425188427,1781565048000,-500.0,0.00014999,2]
[425188428,1781565048000,-500.0,0.00014999,2]
[425188418,1781565048000,-500.0,0.00014999,2]
[425188420,1781565048000,-500.0,0.00014999,2]
[425188436,1781565048000,-500.0,0.00014999,2]
[425188430,1781565048000,-500.0,0.00014999,2]
[425188438,1781565048000,-500.0,0.00014999,2]
[425188447,1781565048000,-500.0,0.00014999,2]
[425188435,1781565048000,-500.0,0.00014999,2]
[425188439,1781565048000,-500.0,0.00014999,2]
[425188440,1781565048000,-500.0,0.00014999,2]
[425188442,1781565048000,-500.0,0.00014999,2]
[425188451,1781565048000,-500.0,0.00014999,2]
[425188449,1781565048000,-500.0,0.00014999,2]
[425188450,1781565048000,-500.0,0.00014999,2]
[425188443,1781565048000,-500.0,0.00014999,2]
[425188441,1781565048000,-500.0,0.00014999,2]
[425188444,1781565048000,-500.0,0.00014999,2]
[425188445,1781565048000,-500.0,0.00014999,2]
[425188421,1781565048000,-500.0,0.00014999,2]
[425188437,1781565048000,-500.0,0.00014999,2]
[425188417,1781565048000,-500.0,0.00014999,2]
[425188395,1781565048000,-194.50273951,0.00014986,2]
[425188423,1781565048000,-288.93748292,0.00014999,2]
[425188396,1781565048000,-257.32251386,0.00014986,2]
[425188448,1781565048000,-500.0,0.00014999,2]
[425188404,1781565048000,-151.0,0.00014997,2]
[425188400,1781565048000,-26993.52920059,0.00014989,2]
[425188401,1781565048000,-226.23827429,0.0001499,2]
[425188398,1781565048000,-309.5526394,0.00014986,2]
[425188399,1781565048000,-382.0,0.00014988,2]
[425188397,1781565048000,-151.25404136,0.00014986,2]
[425188402,1781565048000,-226.23827429,0.0001499,2]
[425188403,1781565048000,-151.0,0.00014997,2]
[425188416,1781565048000,-500.0,0.00014999,2]
[425188406,1781565048000,-500.0,0.00014999,2]
[425188422,1781565048000,-500.0,0.00014999,2]
[425188405,1781565048000,-500.0,0.00014999,2]
[425188409,1781565048000,-500.0,0.00014999,2]
[425188411,1781565048000,-500.0,0.00014999,2]
[425188407,1781565048000,-500.0,0.00014999,2]
[425188408,1781565048000,-500.0,0.00014999,2]
[425188413,1781565048000,-500.0,0.00014999,2]
[425188414,1781565048000,-500.0,0.00014999,2]
[425188412,1781565048000,-360.31710337,0.00014999,2]
[425188415,1781565048000,-500.0,0.00014999,2]
[425188424,1781565048000,-4567.89,0.00014999,2]
[425188425,1781565048000,-500.0,0.00014999,2]
[425188426,1781565048000,-500.0,0.00014999,2]
[425188419,1781565048000,-500.0,0.00014999,2]
[425188410,1781565048000,-500.0,0.00014999,2]
[425188453,1781565048000,-500.0,0.00014999,2]
[425188446,1781565048000,-500.0,0.00014999,2]
[425188455,1781565048000,-500.0,0.00014999,2]
[425188484,1781565048000,-500.0,0.00014999,2]
[425188486,1781565048000,-500.0,0.00014999,2]
[425188497,1781565048000,-500.0,0.00014999,2]
[425188487,1781565048000,-500.0,0.00014999,2]
[425188492,1781565048000,-500.0,0.00014999,2]
[425188490,1781565048000,-500.0,0.00014999,2]
[425188489,1781565048000,-500.0,0.00014999,2]
[425188494,1781565048000,-500.0,0.00014999,2]
[425188491,1781565048000,-500.0,0.00014999,2]
[425188488,1781565048000,-500.0,0.00014999,2]
[425188493,1781565048000,-500.0,0.00014999,2]
[425188495,1781565048000,-500.0,0.00014999,2]
[425188480,1781565048000,-500.0,0.00014999,2]
[425188499,1781565048000,-500.0,0.00014999,2]
[425188498,1781565048000,-500.0,0.00014999,2]
[425188502,1781565048000,-500.0,0.00014999,2]
[425188500,1781565048000,-500.0,0.00014999,2]
[425188501,1781565048000,-500.0,0.00014999,2]
[425188504,1781565048000,-500.0,0.00014999,2]
[425188508,1781565048000,-500.0,0.00014999,2]
[425188503,1781565048000,-500.0,0.00014999,2]
[425188505,1781565048000,-500.0,0.00014999,2]
[425188506,1781565048000,-500.0,0.00014999,2]
[425188507,1781565048000,-500.0,0.00014999,2]
[425188463,1781565048000,-500.0,0.00014999,2]
[425188510,1781565048000,-500.0,0.00014999,2]
[425188509,1781565048000,-500.0,0.00014999,2]
[425188482,1781565048000,-500.0,0.00014999,2]
[425188496,1781565048000,-500.0,0.00014999,2]
[425188478,1781565048000,-500.0,0.00014999,2]
[425188483,1781565048000,-500.0,0.00014999,2]
[425188458,1781565048000,-500.0,0.00014999,2]
[425188456,1781565048000,-500.0,0.00014999,2]
[425188454,1781565048000,-500.0,0.00014999,2]
[425188457,1781565048000,-500.0,0.00014999,2]
[425188459,1781565048000,-500.0,0.00014999,2]
[425188460,1781565048000,-500.0,0.00014999,2]
[425188462,1781565048000,-500.0,0.00014999,2]
[425188461,1781565048000,-500.0,0.00014999,2]
[425188464,1781565048000,-500.0,0.00014999,2]
[425188466,1781565048000,-500.0,0.00014999,2]
[425188467,1781565048000,-500.0,0.00014999,2]
[425188465,1781565048000,-500.0,0.00014999,2]
[425188452,1781565048000,-500.0,0.00014999,2]
[425188471,1781565048000,-500.0,0.00014999,2]
[425188470,1781565048000,-500.0,0.00014999,2]
[425188481,1781565048000,-500.0,0.00014999,2]
[425188477,1781565048000,-500.0,0.00014999,2]
[425188475,1781565048000,-500.0,0.00014999,2]
[425188476,1781565048000,-500.0,0.00014999,2]
[425188485,1781565048000,-500.0,0.00014999,2]
[425188479,1781565048000,-500.0,0.00014999,2]
[425188473,1781565048000,-500.0,0.00014999,2]
[425188469,1781565048000,-500.0,0.00014999,2]
[425188474,1781565048000,-500.0,0.00014999,2]
[425188472,1781565048000,-500.0,0.00014999,2]
[425188468,1781565048000,-500.0,0.00014999,2]
[425188548,1781565049000,-151.0,0.00015,2]
[425188553,1781565049000,-151.0,0.00015068,2]
[425188556,1781565049000,-5552.0,0.000152,2]
[425188536,1781565049000,-3101.633817,0.00015,2]
[425188546,1781565049000,-580.474716,0.00015,2]
[425188545,1781565049000,-580.474716,0.00015,2]
[425188542,1781565049000,-151.0,0.00015,2]
[425188538,1781565049000,-3101.633817,0.00015,2]
[425188544,1781565049000,-580.474716,0.00015,2]
[425188549,1781565049000,-500.0,0.00015068,2]
[425188547,1781565049000,-151.0,0.00015,2]
[425188552,1781565049000,-151.0,0.00015068,2]
[425188560,1781565049000,-264.86153661,0.00015342,2]
[425188550,1781565049000,-900.0,0.00015068,2]
[425188551,1781565049000,-151.0,0.00015068,2]
[425188555,1781565049000,-300.02,0.00015152,2]
[425188557,1781565049000,-371.558681,0.00015286,7]
[425188558,1781565049000,-746.52,0.000153,2]
[425188561,1781565049000,-300.02,0.0001581,2]
[425188564,1781565049000,-150.0,0.0001621,2]
[425188562,1781565049000,-1600.0,0.0001606,2]
[425188566,1781565049000,-151.0,0.00016342,30]
[425188559,1781565049000,-307.45,0.000153,2]
[425188563,1781565049000,-9999.99,0.00016116,2]
[425188539,1781565049000,-3101.633817,0.00015,2]
[425188554,1781565049000,-1000.0,0.00015098,2]
[425188537,1781565049000,-3101.633817,0.00015,2]
[425188511,1781565049000,-500.0,0.00014999,2]
[425188543,1781565049000,-580.474716,0.00015,2]
[425188567,1781565049000,-151.0,0.00016342,7]
[425188512,1781565049000,-500.0,0.00014999,2]
[425188521,1781565049000,-300.0,0.00014999,2]
[425188522,1781565049000,-671.15011359,0.00014999,2]
[425188523,1781565049000,-15882056.10810328,0.00015,2]
[425188519,1781565049000,-4389.07,0.00014999,2]
[425188518,1781565049000,-4388.91,0.00014999,2]
[425188514,1781565049000,-500.0,0.00014999,2]
[425188513,1781565049000,-500.0,0.00014999,2]
[425188516,1781565049000,-4388.91,0.00014999,2]